Workbook

Sheet 읍면동별 세대 및 인구
A1: 여수시 읍면동별 세대 및 인구
A2: 작성기준 : 2020. 1. 31. 현재 | J2: (단위 : 세대, 명)
A3: 구 분 | B3: 세대수1) | C3: 합 계 | F3: 한국인 | I3: 외국인
C4: 계 | D4: 남 | E4: 여 | F4: 계 | G4: 남 | H4: 여 | I4: 계 | J4: 남 | K4: 여
A5: 19년 7월말 | B5: 122,374 | C5: 287,274 | D5: 146,905 | E5: 140,369 | F5: 282,632 | G5: 143,615 | H5: 139,017 | I5: 4,642 | J5: 3,290 | K5: 1,352
A6: 19년 8월말 | B6: 122,466 | C6: 287,049 | D6: 146,810 | E6: 140,239 | F6: 282,357 | G6: 143,470 | H6: 138,887 | I6: 4,692 | J6: 3,340 | K6: 1,352
A7: 19년 9월말 | B7: 122,689 | C7: 286,848 | D7: 146,666 | E7: 140,182 | F7: 282,188 | G7: 143,373 | H7: 138,815 | I7: 4,660 | J7: 3,293 | K7: 1,367
A8: 19년 10월말 | B8: 122,918 | C8: 286,729 | D8: 146,654 | E8: 140,075 | F8: 282,058 | G8: 143,351 | H8: 138,707 | I8: 4,671 | J8: 3,303 | K8: 1,368
A9: 19년 11월말 | B9: 123,445 | C9: 287,673 | D9: 147,163 | E9: 140,510 | F9: 282,980 | G9: 143,857 | H9: 139,123 | I9: 4,693 | J9: 3,306 | K9: 1,387
A10: 19년 12월말 | B10: 123,677 | C10: 287,410 | D10: 147,059 | E10: 140,351 | F10: 282,786 | G10: 143,791 | H10: 138,995 | I10: 4,624 | J10: 3,268 | K10: 1,356
A11: 20년 1월말 | B11: =SUM(B12:B38) -> 123,794 | C11: =SUM(C12:C38) -> 287,072 | D11: 146,959 | E11: 140,113 | F11: 282,356 | G11: 143,642 | H11: 138,714 | I11: 4,716 | J11: 3,317 | K11: 1,399
A12: 돌산읍 | B12: 6,583 | C12: =SUM(D12:E12) -> 14,161 | D12: =SUM(G12+J12) -> 7,487 | E12: =SUM(H12+K12) -> 6,674 | F12: =SUM(G12,H12) -> 13,375 | G12: 6,803 | H12: 6,572 | I12: =SUM(J12:K12) -> 786 | J12: 684 | K12: 102
A13: 소라면 | B13: 8,797 | C13: 21,053 | D13: =SUM(G13+J13) -> 10,689 | E13: =SUM(H13+K13) -> 10,364 | F13: =SUM(G13,H13) -> 20,913 | G13: 10,642 | H13: 10,271 | I13: 140 | J13: 47 | K13: 93
A14: 율촌면 | B14: 3,254 | C14: 6,555 | D14: =SUM(G14+J14) -> 3,396 | E14: 3,159 | F14: 6,396 | G14: 3,282 | H14: 3,114 | I14: 159 | J14: 114 | K14: 45
A15: 화양면 | B15: 3,527 | C15: 6,750 | D15: 3,540 | E15: 3,210 | F15: 6,574 | G15: 3,408 | H15: 3,166 | I15: 176 | J15: 132 | K15: 44
A16: 남면 | B16: 1,674 | C16: 3,026 | D16: 1,580 | E16: 1,446 | F16: 2,915 | G16: 1,481 | H16: 1,434 | I16: 111 | J16: 99 | K16: 12
A17: 화정면 | B17: 1,275 | C17: 2,243 | D17: 1,131 | E17: 1,112 | F17: 2,181 | G17: 1,073 | H17: 1,108 | I17: 62 | J17: 58 | K17: 4
A18: 삼산면 | B18: 1,218 | C18: 2,214 | D18: 1,265 | E18: 949 | F18: 2,118 | G18: 1,178 | H18: 940 | I18: 96 | J18: 87 | K18: 9
A19: 동문동 | B19: 2,478 | C19: 4,783 | D19: 2,424 | E19: 2,359 | F19: 4,724 | G19: 2,386 | H19: 2,338 | I19: 59 | J19: 38 | K19: 21
A20: 한려동 | B20: 1,817 | C20: 3,295 | D20: 1,667 | E20: 1,628 | F20: 3,273 | G20: 1,661 | H20: 1,612 | I20: 22 | J20: 6 | K20: 16
A21: 중앙동 | B21: 2,346 | C21: 4,700 | D21: 2,366 | E21: 2,334 | F21: 4,593 | G21: 2,287 | H21: 2,306 | I21: 107 | J21: 79 | K21: 28
A22: 충무동 | B22: 2,235 | C22: 4,186 | D22: 2,161 | E22: 2,025 | F22: 4,140 | G22: 2,131 | H22: 2,009 | I22: 46 | J22: 30 | K22: 16
A23: 광림동 | B23: 3,251 | C23: 6,458 | D23: 3,337 | E23: 3,121 | F23: 6,408 | G23: 3,323 | H23: 3,085 | I23: 50 | J23: 14 | K23: 36
A24: 서강동 | B24: 1,921 | C24: 3,911 | D24: 1,946 | E24: 1,965 | F24: 3,884 | G24: 1,938 | H24: 1,946 | I24: 27 | J24: 8 | K24: 19
A25: 대교동 | B25: 3,084 | C25: 5,875 | D25: 3,111 | E25: 2,764 | F25: 5,584 | G25: 2,862 | H25: 2,722 | I25: 291 | J25: 249 | K25: 42
A26: 국동 | B26: 5,387 | C26: 12,395 | D26: 6,409 | E26: 5,986 | F26: 12,017 | G26: 6,084 | H26: 5,933 | I26: 378 | J26: 325 | K26: 53
A27: 월호동 | B27: 2,907 | C27: 7,518 | D27: 3,843 | E27: 3,675 | F27: 7,221 | G27: 3,572 | H27: 3,649 | I27: 297 | J27: 271 | K27: 26
A28: 여서동 | B28: 7,786 | C28: 19,500 | D28: 9,607 | E28: 9,893 | F28: 19,353 | G28: 9,541 | H28: 9,812 | I28: 147 | J28: 66 | K28: 81
A29: 문수동 | B29: 8,684 | C29: 20,348 | D29: 10,252 | E29: 10,096 | F29: 20,009 | G29: 10,043 | H29: 9,966 | I29: 339 | J29: 209 | K29: 130
A30: 미평동 | B30: 5,724 | C30: 12,383 | D30: 6,606 | E30: 5,777 | F30: 12,169 | G30: 6,454 | H30: 5,715 | I30: 214 | J30: 152 | K30: 62
A31: 둔덕동 | B31: 4,033 | C31: 10,713 | D31: 5,377 | E31: 5,336 | F31: 10,554 | G31: 5,310 | H31: 5,244 | I31: 159 | J31: 67 | K31: 92
A32: 만덕동 | B32: 4,377 | C32: 10,787 | D32: 5,403 | E32: 5,384 | F32: 10,625 | G32: 5,307 | H32: 5,318 | I32: 162 | J32: 96 | K32: 66
A33: 쌍봉동 | B33: 13,280 | C33: 33,490 | D33: 17,167 | E33: 16,323 | F33: 33,253 | G33: 17,049 | H33: 16,204 | I33: 237 | J33: 118 | K33: 119
A34: 시전동 | B34: 13,292 | C34: 36,332 | D34: 18,264 | E34: 18,068 | F34: 36,065 | G34: 18,107 | H34: 17,958 | I34: 267 | J34: 157 | K34: 110
A35: 여천동 | B35: 10,001 | C35: 22,138 | D35: 11,556 | E35: 10,582 | F35: 21,974 | G35: 11,507 | H35: 10,467 | I35: 164 | J35: 49 | K35: 115
A36: 주삼동 | B36: 2,977 | C36: 8,334 | D36: 4,234 | E36: 4,100 | F36: 8,266 | G36: 4,203 | H36: 4,063 | I36: 68 | J36: 31 | K36: 37
A37: 삼일동 | B37: 1,279 | C37: 2,691 | D37: 1,504 | E37: 1,187 | F37: 2,547 | G37: 1,374 | H37: 1,173 | I37: 144 | J37: 130 | K37: 14
A38: 묘도동 | B38: 607 | C38: 1,233 | D38: 637 | E38: 596 | F38: 1,225 | G38: 636 | H38: 589 | I38: 8 | J38: 1 | K38: 7
A39: 주 : 1) 세대수에는 외국인 세대 제외

Sheet 65세이상 인구(총괄)
A1: 65세이상 인구 현황(총괄)
A2: 작성기준 : 2020. 1. 31. 현재 | D2: (단위 : 명)
A3: 구 분 | B3: 계 | C3: 남 | D3: 여 | E3: 노령화 지수
A4: 2011년말 | B4: 37,830 | C4: 15,023 | D4: 22,807 | E4: 82.0
A5: 2012년말 | B5: 39,671 | C5: 15,929 | D5: 23,742 | E5: 89.4
A6: 2013년말 | B6: 41,369 | C6: 16,775 | D6: 24,594 | E6: 96.8
A7: 2014년말 | B7: 43,225 | C7: 17,752 | D7: 25,473 | E7: 105.4
A8: 2015년말 | B8: 44,997 | C8: 18,775 | D8: 26,222 | E8: 114.3
A9: 2016년말 | B9: 46,632 | C9: 19,720 | D9: 26,912 | E9: 121.8
A10: 2017년말 | B10: 48,569 | C10: 20,703 | D10: 27,866 | E10: 130.6
A11: 2018년말 | B11: 49,609 | C11: 21,259 | D11: 28,350 | E11: 139.0
A12: 2019년말 | B12: 51,995 | C12: 22,462 | D12: 29,533 | E12: 151.0
A13: 2020년 1월말 | B13: 52,215 | C13: 22,585 | D13: 29,630 | E13: 152.3
A14: 자료 : 민원지적과
A15: 주 : 노령화 지수 = (65세이상인구 / 0~14세 인구) * 100
J24: `
